[Event "Live Chess"]
[Site "Chess.com"]
[Date "2024.06.02"]
[Round "-"]
[White "resipsa6"]
[Black "Kyrylo7770"]
[Result "1-0"]
[WhiteElo "2024"]
[BlackElo "1614"]
[TimeControl "300"]
[EndTime "3:17:18 PDT"]
[Termination "resipsa6 won by checkmate"]

1. e4 {[%clk 0:04:59.3]} 1... c6 {[%clk 0:04:59.2]} 2. e5 {[%clk 0:04:57.4]}
2... d5 {[%clk 0:04:58.4]} 3. exd6 {[%clk 0:04:56.3]} 3... Qxd6 {[%clk
0:04:58.1]} 4. Nf3 {[%clk 0:04:55.8]} 4... Nf6 {[%clk 0:04:57.4]} 5. d4 {[%clk
0:04:55.3]} 5... Bg4 {[%clk 0:04:56.8]} 6. Be2 {[%clk 0:04:54.2]} 6... e6 {[%clk
0:04:55.9]} 7. Be3 {[%clk 0:04:53.4]} 7... Qd8 {[%clk 0:04:55.5]} 8. c3 {[%clk
0:04:52.8]} 8... Bd6 {[%clk 0:04:54.3]} 9. Nbd2 {[%clk 0:04:52.4]} 9... Bc7
{[%clk 0:04:53.8]} 10. Nc4 {[%clk 0:04:51.6]} 10... Nbd7 {[%clk 0:04:52.4]} 11.
Nce5 {[%clk 0:04:50.8]} 11... Bxf3 {[%clk 0:04:49.5]} 12. Nxf3 {[%clk
0:04:47.3]} 12... Nb6 {[%clk 0:04:46.3]} 13. O-O {[%clk 0:04:46.1]} 13... O-O
{[%clk 0:04:45.3]} 14. Qd2 {[%clk 0:04:45.4]} 14... Nbd5 {[%clk 0:04:41.7]} 15.
c4 {[%clk 0:04:43.1]} 15... Ba5 {[%clk 0:04:37.4]} 16. Qc2 {[%clk 0:04:34]}
16... Nxe3 {[%clk 0:04:24.5]} 17. fxe3 {[%clk 0:04:30.4]} 17... Bc7 {[%clk
0:04:22.6]} 18. Bd3 {[%clk 0:04:27.5]} 18... Ng4 {[%clk 0:04:21.4]} 19. Rfe1
{[%clk 0:04:21.4]} 19... Qf6 {[%clk 0:04:19]} 20. h3 {[%clk 0:04:13.8]} 20...
Nh6 {[%clk 0:04:16.8]} 21. Bxh7+ {[%clk 0:04:08.3]} 21... Kh8 {[%clk 0:04:15.7]}
22. Bd3 {[%clk 0:04:07]} 22... g6 {[%clk 0:04:15.1]} 23. Rf1 {[%clk 0:04:00.5]}
23... Kg7 {[%clk 0:04:13.4]} 24. Ne5 {[%clk 0:03:58.8]} 24... Qg5 {[%clk
0:04:05.1]} 25. Nd7 {[%clk 0:03:40.7]} 25... Qxe3+ {[%clk 0:04:02.9]} 26. Kh1
{[%clk 0:03:38.9]} 26... Rh8 {[%clk 0:03:55.1]} 27. Rf3 {[%clk 0:03:31.4]} 27...
Qxd4 {[%clk 0:03:50.8]} 28. Rd1 {[%clk 0:03:26.9]} 28... Qd6 {[%clk 0:03:49.7]}
29. g3 {[%clk 0:03:04.8]} 29... Qxd7 {[%clk 0:03:48.3]} 30. Bxg6 {[%clk
0:03:00.5]} 30... Nf5 {[%clk 0:03:45]} 31. Rxd7 {[%clk 0:02:54.8]} 31... Rxh3+
{[%clk 0:03:43.5]} 32. Kg2 {[%clk 0:02:53.4]} 32... Rxg3+ {[%clk 0:03:38.3]} 33.
Rxg3 {[%clk 0:02:51.3]} 33... Nxg3 {[%clk 0:03:37.4]} 34. Rxf7+ {[%clk
0:02:49.7]} 34... Kg8 {[%clk 0:03:32.9]} 35. Bh7+ {[%clk 0:02:45.1]} 35... Kxf7
{[%clk 0:03:31.4]} 36. Qg6+ {[%clk 0:02:41]} 36... Ke7 {[%clk 0:03:30.9]} 37.
Qg7+ {[%clk 0:02:38.4]} 37... Kd6 {[%clk 0:03:30.3]} 38. Kxg3 {[%clk 0:02:34.7]}
38... Kc5+ {[%clk 0:03:28.6]} 39. Qxc7 {[%clk 0:02:33.7]} 39... Kxc4 {[%clk
0:03:26.3]} 40. Qxb7 {[%clk 0:02:32.5]} 40... Rd8 {[%clk 0:03:25.4]} 41. Qxc6+
{[%clk 0:02:31.4]} 41... Kd4 {[%clk 0:03:24.1]} 42. Qxe6 {[%clk 0:02:29.8]}
42... Rd5 {[%clk 0:03:22.3]} 43. Qxd5+ {[%clk 0:02:28]} 43... Kxd5 {[%clk
0:03:21.6]} 44. Kf3 {[%clk 0:02:27.1]} 44... Kc4 {[%clk 0:03:19.9]} 45. Ke3
{[%clk 0:02:26.5]} 45... a5 {[%clk 0:03:19.1]} 46. Bg8+ {[%clk 0:02:23.9]} 46...
Kb4 {[%clk 0:03:16.9]} 47. Bf7 {[%clk 0:02:19.6]} 47... a4 {[%clk 0:03:15.7]}
48. Kd4 {[%clk 0:02:18]} 48... a3 {[%clk 0:03:13.5]} 49. b3 {[%clk 0:02:16.9]}
49... Kb5 {[%clk 0:03:12.2]} 50. Kc3 {[%clk 0:02:13.5]} 50... Ka5 {[%clk
0:03:11.1]} 51. Kc4 {[%clk 0:02:12.4]} 51... Ka6 {[%clk 0:03:09.4]} 52. Kb4
{[%clk 0:02:11.6]} 52... Kb6 {[%clk 0:03:08.8]} 53. Ka4 {[%clk 0:02:10]} 53...
Kc5 {[%clk 0:03:08.1]} 54. Ka5 {[%clk 0:02:09.2]} 54... Kd4 {[%clk 0:03:06.7]}
55. b4 {[%clk 0:02:08.4]} 55... Kc3 {[%clk 0:03:06.1]} 56. b5 {[%clk 0:02:08]}
56... Kb2 {[%clk 0:03:06]} 57. b6 {[%clk 0:02:07.5]} 57... Kc3 {[%clk
0:03:05.5]} 58. b7 {[%clk 0:02:06.8]} 58... Kb2 {[%clk 0:03:05.3]} 59. b8=N
{[%clk 0:02:04.8]} 59... Ka1 {[%clk 0:03:05.2]} 60. Na6 {[%clk 0:02:02]} 60...
Kb2 {[%clk 0:03:03.6]} 61. Nc5 {[%clk 0:02:01.5]} 61... Ka1 {[%clk 0:03:03.1]}
62. Kb4 {[%clk 0:01:58.2]} 62... Kb2 {[%clk 0:03:01.9]} 63. Kc4 {[%clk
0:01:56.4]} 63... Kxa2 {[%clk 0:03:00.7]} 64. Kc3+ {[%clk 0:01:54.8]} 64... Kb1
{[%clk 0:02:59.4]} 65. Nb3 {[%clk 0:01:42.6]} 65... a2 {[%clk 0:02:58.2]} 66.
Bg6# {[%clk 0:01:41]} 1-0

[Event "Live Chess"]
[Site "Chess.com"]
[Date "2024.06.02"]
[Round "-"]
[White "slava_ukr"]
[Black "MagnersCarlsberg2870"]
[Result "1-0"]
[WhiteElo "2425"]
[BlackElo "1780"]
[TimeControl "300"]
[EndTime "3:17:35 PDT"]
[Termination "slava_ukr won by resignation"]

1. e4 {[%clk 0:04:58.1]} 1... d6 {[%clk 0:04:58.3]} 2. Nc3 {[%clk 0:04:56.4]}
2... Nf6 {[%clk 0:04:56.2]} 3. f4 {[%clk 0:04:55.5]} 3... Bg4 {[%clk 0:04:50.7]}
4. Nf3 {[%clk 0:04:54.3]} 4... e5 {[%clk 0:04:47.8]} 5. Bc4 {[%clk 0:04:52.2]}
5... Be7 {[%clk 0:04:45.8]} 6. fxe5 {[%clk 0:04:49.5]} 6... dxe5 {[%clk
0:04:42.5]} 7. Bxf7+ {[%clk 0:04:48.1]} 7... Kxf7 {[%clk 0:04:39.5]} 8. Nxe5+
{[%clk 0:04:47.1]} 8... Ke8 {[%clk 0:04:38.6]} 9. Nxg4 {[%clk 0:04:46.1]} 9...
Qd4 {[%clk 0:04:27.1]} 10. d3 {[%clk 0:04:41.7]} 10... Bc5 {[%clk 0:04:24.8]}
11. Be3 {[%clk 0:04:38]} 11... Qb4 {[%clk 0:04:18]} 12. Nxf6+ {[%clk 0:04:35.1]}
12... gxf6 {[%clk 0:04:16.5]} 13. Qh5+ {[%clk 0:04:33.6]} 1-0

[Event "Live Chess"]
[Site "Chess.com"]
[Date "2024.06.02"]
[Round "-"]
[White "elis06"]
[Black "Hoogleboogle"]
[Result "1-0"]
[WhiteElo "2331"]
[BlackElo "1363"]
[TimeControl "300"]
[EndTime "3:17:36 PDT"]
[Termination "elis06 won by resignation"]

1. d4 {[%clk 0:04:58.3]} 1... Nf6 {[%clk 0:04:54.2]} 2. Nf3 {[%clk 0:04:56.9]}
2... e6 {[%clk 0:04:52.3]} 3. Bf4 {[%clk 0:04:55.3]} 3... d5 {[%clk 0:04:50.7]}
4. e3 {[%clk 0:04:54]} 4... c5 {[%clk 0:04:40.1]} 5. c3 {[%clk 0:04:51.3]} 5...
cxd4 {[%clk 0:04:38.4]} 6. exd4 {[%clk 0:04:50.1]} 6... Bd6 {[%clk 0:04:35]} 7.
Bg5 {[%clk 0:04:48.4]} 7... h6 {[%clk 0:04:32.1]} 8. Bh4 {[%clk 0:04:46.8]} 8...
g5 {[%clk 0:04:30.2]} 9. Bg3 {[%clk 0:04:45.6]} 9... Bxg3 {[%clk 0:04:28.8]} 10.
hxg3 {[%clk 0:04:44.8]} 10... Nbd7 {[%clk 0:04:19.2]} 11. Bd3 {[%clk 0:04:43.6]}
11... a6 {[%clk 0:04:13.4]} 12. Nxg5 {[%clk 0:04:41.6]} 12... Ke7 {[%clk
0:04:05.9]} 13. Nf3 {[%clk 0:04:39.5]} 13... Ne4 {[%clk 0:03:56.7]} 14. Nbd2
{[%clk 0:04:37.3]} 14... b5 {[%clk 0:03:50.7]} 15. Nxe4 {[%clk 0:04:35.2]} 15...
dxe4 {[%clk 0:03:48.1]} 16. Bxe4 {[%clk 0:04:35.1]} 16... Rb8 {[%clk 0:03:44.6]}
17. Qe2 {[%clk 0:04:33.7]} 17... Bb7 {[%clk 0:03:43.1]} 18. Bxb7 {[%clk
0:04:31.9]} 18... Rxb7 {[%clk 0:03:41.9]} 19. O-O-O {[%clk 0:04:31.3]} 19... Qc7
{[%clk 0:03:29.3]} 20. d5 {[%clk 0:04:30.2]} 20... b4 {[%clk 0:03:27.4]} 21. d6+
{[%clk 0:04:28.7]} 1-0

[Event "Live Chess"]
[Site "Chess.com"]
[Date "2024.06.02"]
[Round "-"]
[White "booktrunk"]
[Black "KeithArkell"]
[Result "0-1"]
[WhiteElo "1500"]
[BlackElo "2406"]
[TimeControl "300"]
[EndTime "3:17:38 PDT"]
[Termination "KeithArkell won by resignation"]

1. d4 {[%clk 0:04:55.8]} 1... c5 {[%clk 0:04:58.7]} 2. dxc5 {[%clk 0:04:52.6]}
2... e6 {[%clk 0:04:57.5]} 3. a3 {[%clk 0:04:49.8]} 3... Bxc5 {[%clk 0:04:53.1]}
4. b4 {[%clk 0:04:48.1]} 4... Bb6 {[%clk 0:04:51.3]} 5. Nf3 {[%clk 0:04:39.9]}
5... Qf6 {[%clk 0:04:49.5]} 6. c3 {[%clk 0:04:31.4]} 6... h6 {[%clk 0:04:47.6]}
7. Bb2 {[%clk 0:04:30.3]} 7... Nc6 {[%clk 0:04:46.4]} 8. Qc2 {[%clk 0:04:29.3]}
8... g5 {[%clk 0:04:45.1]} 9. c4 {[%clk 0:04:27.7]} 9... e5 {[%clk 0:04:42.7]}
10. e3 {[%clk 0:04:17.2]} 10... d6 {[%clk 0:04:37.7]} 11. Be2 {[%clk 0:04:15.6]}
11... Bf5 {[%clk 0:04:35]} 12. Qd2 {[%clk 0:04:08.7]} 12... Nge7 {[%clk
0:04:32]} 13. h3 {[%clk 0:04:04.4]} 13... O-O {[%clk 0:04:28.9]} 14. Nc3 {[%clk
0:04:01.4]} 14... Rad8 {[%clk 0:04:26.1]} 15. Nd5 {[%clk 0:04:00]} 15... Nxd5
{[%clk 0:04:25.3]} 16. cxd5 {[%clk 0:03:58.6]} 16... Ne7 {[%clk 0:04:23.3]} 17.
g4 {[%clk 0:03:52]} 17... Be4 {[%clk 0:04:22]} 18. Qd1 {[%clk 0:03:46.4]} 18...
Rc8 {[%clk 0:04:20.4]} 19. O-O {[%clk 0:03:45]} 19... Rc2 {[%clk 0:04:19]} 20.
Bd3 {[%clk 0:03:29.7]} 20... Bxd3 {[%clk 0:04:16.4]} 21. Qxd3 {[%clk 0:03:26.5]}
21... Rxb2 {[%clk 0:04:15.7]} 22. Rfc1 {[%clk 0:03:22.9]} 22... Qxf3 {[%clk
0:04:14.1]} 0-1

[Event "Live Chess"]
[Site "Chess.com"]
[Date "2024.06.02"]
[Round "-"]
[White "Queensandpawns"]
[Black "AlexanderMatlak"]
[Result "0-1"]
[WhiteElo "2242"]
[BlackElo "2395"]
[TimeControl "300"]
[EndTime "3:17:51 PDT"]
[Termination "AlexanderMatlak won by resignation"]

1. e4 {[%clk 0:04:58.3]} 1... c5 {[%clk 0:04:58.9]} 2. Nf3 {[%clk 0:04:57.9]}
2... d6 {[%clk 0:04:58]} 3. d4 {[%clk 0:04:57.4]} 3... cxd4 {[%clk 0:04:57.3]}
4. c3 {[%clk 0:04:57.3]} 4... Nf6 {[%clk 0:04:56.3]} 5. Bc4 {[%clk 0:04:56.4]}
5... e6 {[%clk 0:04:45.7]} 6. O-O {[%clk 0:04:55.8]} 6... Nxe4 {[%clk
0:04:39.4]} 7. Re1 {[%clk 0:04:54.8]} 7... d5 {[%clk 0:04:34.7]} 8. Bb5+ {[%clk
0:04:54.2]} 8... Bd7 {[%clk 0:04:33.9]} 9. Nxd4 {[%clk 0:04:53.7]} 9... Bc5
{[%clk 0:04:29.5]} 10. Bxd7+ {[%clk 0:04:51]} 10... Nxd7 {[%clk 0:04:23.5]} 11.
b4 {[%clk 0:04:47.4]} 11... Bb6 {[%clk 0:04:19.1]} 12. Nd2 {[%clk 0:04:45.8]}
12... Nxc3 {[%clk 0:03:54.2]} 13. Qg4 {[%clk 0:04:43.2]} 13... O-O {[%clk
0:03:45.1]} 14. Bb2 {[%clk 0:04:38.7]} 14... Nf6 {[%clk 0:03:37.7]} 15. Qh4
{[%clk 0:04:17.4]} 15... Nfe4 {[%clk 0:03:27.4]} 16. Qxd8 {[%clk 0:04:13.6]}
16... Rfxd8 {[%clk 0:03:26.2]} 17. Nxe4 {[%clk 0:04:13.5]} 17... Nxe4 {[%clk
0:03:25]} 18. Rad1 {[%clk 0:04:07.9]} 18... Rac8 {[%clk 0:03:23.3]} 19. f3
{[%clk 0:04:05.4]} 19... Nd6 {[%clk 0:03:21.7]} 20. Kf1 {[%clk 0:04:04]} 20...
Rc4 {[%clk 0:03:09.8]} 21. a3 {[%clk 0:04:02.6]} 21... Rdc8 {[%clk 0:03:09]} 22.
Re2 {[%clk 0:04:01.2]} 22... a6 {[%clk 0:02:49.9]} 23. Nxe6 {[%clk 0:03:42.1]}
23... fxe6 {[%clk 0:02:44.3]} 24. Rxe6 {[%clk 0:03:42]} 24... R4c6 {[%clk
0:02:24.9]} 25. Rxd5 {[%clk 0:03:39.1]} 25... Nc4 {[%clk 0:02:22.3]} 26. Rxc6
{[%clk 0:03:36.5]} 26... Rxc6 {[%clk 0:02:19.9]} 27. Ba1 {[%clk 0:03:35.6]}
27... Rd6 {[%clk 0:02:13.5]} 0-1

[Event "Live Chess"]
[Site "Chess.com"]
[Date "2024.06.02"]
[Round "-"]
[White "oscalik"]
[Black "yarek"]
[Result "1-0"]
[WhiteElo "2233"]
[BlackElo "1756"]
[TimeControl "300"]
[EndTime "3:18:08 PDT"]
[Termination "oscalik won on time"]

1. e4 {[%clk 0:04:52.3]} 1... g6 {[%clk 0:04:58.6]} 2. d4 {[%clk 0:04:51.1]}
2... Bg7 {[%clk 0:04:58.2]} 3. Nc3 {[%clk 0:04:50.6]} 3... c6 {[%clk 0:04:57.7]}
4. f4 {[%clk 0:04:48.1]} 4... d5 {[%clk 0:04:55.8]} 5. e5 {[%clk 0:04:47.4]}
5... h5 {[%clk 0:04:54]} 6. Nf3 {[%clk 0:04:46.1]} 6... Bg4 {[%clk 0:04:51.5]}
7. Be3 {[%clk 0:04:43.9]} 7... Nh6 {[%clk 0:04:49.5]} 8. Be2 {[%clk 0:04:42.7]}
8... e6 {[%clk 0:04:46.2]} 9. O-O {[%clk 0:04:41.4]} 9... Nd7 {[%clk 0:04:45.5]}
10. h3 {[%clk 0:04:40.4]} 10... Bxf3 {[%clk 0:04:43.7]} 11. Bxf3 {[%clk
0:04:40.3]} 11... Nf5 {[%clk 0:04:38.7]} 12. Bf2 {[%clk 0:04:39.4]} 12... h4
{[%clk 0:04:37.2]} 13. Ne2 {[%clk 0:04:37.6]} 13... c5 {[%clk 0:04:31.8]} 14. c3
{[%clk 0:04:36.2]} 14... cxd4 {[%clk 0:04:22.1]} 15. Nxd4 {[%clk 0:04:30.8]}
15... a6 {[%clk 0:04:14.3]} 16. Qb3 {[%clk 0:04:13.4]} 16... Qc7 {[%clk
0:04:02]} 17. Rad1 {[%clk 0:04:10.5]} 17... Ng3 {[%clk 0:03:47.4]} 18. Rfe1
{[%clk 0:04:05.3]} 18... Bf8 {[%clk 0:03:42.8]} 19. Bxd5 {[%clk 0:03:40.2]}
19... exd5 {[%clk 0:03:36.4]} 20. e6 {[%clk 0:03:39.5]} 20... O-O-O {[%clk
0:03:02.9]} 21. exd7+ {[%clk 0:03:32.4]} 21... Qxd7 {[%clk 0:02:58.1]} 22. c4
{[%clk 0:03:17]} 22... Ne4 {[%clk 0:02:46.4]} 23. Be3 {[%clk 0:03:05]} 23... Nc5
{[%clk 0:02:23.2]} 24. Qb6 {[%clk 0:02:49.4]} 24... Na4 {[%clk 0:02:02.3]} 25.
Qb3 {[%clk 0:02:36.8]} 25... Nc5 {[%clk 0:01:52]} 26. Qc2 {[%clk 0:02:35.8]}
26... Kb8 {[%clk 0:01:47.2]} 27. f5 {[%clk 0:02:29.9]} 27... Bg7 {[%clk
0:01:29.9]} 28. Bf4+ {[%clk 0:02:13.8]} 28... Ka8 {[%clk 0:01:21.8]} 29. cxd5
{[%clk 0:01:49.6]} 29... Rc8 {[%clk 0:01:12.9]} 30. Nc6 {[%clk 0:01:24.4]} 30...
bxc6 {[%clk 0:00:51.5]} 31. Qxc5 {[%clk 0:01:21.6]} 31... cxd5 {[%clk
0:00:50.6]} 32. Qa5 {[%clk 0:01:03.5]} 32... Qb5 {[%clk 0:00:44.7]} 33. Rxd5
{[%clk 0:00:55.1]} 33... Bd4+ {[%clk 0:00:40.1]} 34. Kh1 {[%clk 0:00:49.6]}
34... Qxa5 {[%clk 0:00:34.2]} 35. Rxa5 {[%clk 0:00:49.5]} 35... Kb7 {[%clk
0:00:30.7]} 36. Re7+ {[%clk 0:00:48.4]} 36... Kb6 {[%clk 0:00:29.6]} 37. Ra4
{[%clk 0:00:41]} 37... Bc5 {[%clk 0:00:25.9]} 38. Rxf7 {[%clk 0:00:39.5]} 38...
gxf5 {[%clk 0:00:24.3]} 39. Rxf5 {[%clk 0:00:38.2]} 39... Rhe8 {[%clk
0:00:18.1]} 40. Kh2 {[%clk 0:00:19.6]} 40... Bf2 {[%clk 0:00:15.4]} 41. Rb4+
{[%clk 0:00:16.9]} 41... Ka7 {[%clk 0:00:10.1]} 42. Rf7+ {[%clk 0:00:15.9]}
42... Ka8 {[%clk 0:00:08.3]} 43. Ra4 {[%clk 0:00:13.3]} 43... Rc6 {[%clk
0:00:06.3]} 44. Rh7 {[%clk 0:00:09.6]} 44... Bg3+ {[%clk 0:00:05]} 45. Bxg3
{[%clk 0:00:08.8]} 45... hxg3+ {[%clk 0:00:04.9]} 46. Kxg3 {[%clk 0:00:08.7]}
46... Rg8+ {[%clk 0:00:03.7]} 47. Rg4 {[%clk 0:00:08.2]} 47... Rc2 {[%clk
0:00:01]} 48. Rxg8+ {[%clk 0:00:07.7]} 1-0

[Event "Live Chess"]
[Site "Chess.com"]
[Date "2024.06.02"]
[Round "-"]
[White "blunderabit"]
[Black "ameetghasi100"]
[Result "0-1"]
[WhiteElo "1757"]
[BlackElo "2773"]
[TimeControl "300"]
[EndTime "3:18:26 PDT"]
[Termination "ameetghasi100 won on time"]

1. e4 {[%clk 0:04:57.3]} 1... c5 {[%clk 0:04:59.9]} 2. Nf3 {[%clk 0:04:55]} 2...
e6 {[%clk 0:04:59.8]} 3. d4 {[%clk 0:04:52.8]} 3... cxd4 {[%clk 0:04:59.7]} 4.
Nxd4 {[%clk 0:04:51.7]} 4... Ne7 {[%clk 0:04:59.6]} 5. Nc3 {[%clk 0:04:43]} 5...
a6 {[%clk 0:04:57.8]} 6. Be3 {[%clk 0:04:39.9]} 6... b5 {[%clk 0:04:53.8]} 7. a3
{[%clk 0:04:37.8]} 7... Bb7 {[%clk 0:04:51.3]} 8. f3 {[%clk 0:04:20.3]} 8... h5
{[%clk 0:04:46.2]} 9. Qd2 {[%clk 0:04:11.7]} 9... h4 {[%clk 0:04:20.3]} 10. h3
{[%clk 0:04:10.1]} 10... Ng6 {[%clk 0:04:18]} 11. O-O-O {[%clk 0:04:04.3]} 11...
b4 {[%clk 0:04:14.8]} 12. axb4 {[%clk 0:04:01.1]} 12... Bxb4 {[%clk 0:04:14.7]}
13. Bd3 {[%clk 0:03:51.1]} 13... Qa5 {[%clk 0:04:12.9]} 14. Nb3 {[%clk
0:03:42.8]} 14... Qc7 {[%clk 0:04:11.3]} 15. Qe1 {[%clk 0:03:31.7]} 15... Nc6
{[%clk 0:04:00.3]} 16. Bd2 {[%clk 0:03:30.3]} 16... Bd6 {[%clk 0:03:55.9]} 17.
Na4 {[%clk 0:03:14.9]} 17... Nce5 {[%clk 0:03:42.6]} 18. Ba5 {[%clk 0:02:49.9]}
18... Qc6 {[%clk 0:03:40.7]} 19. Nb6 {[%clk 0:02:41.8]} 19... Nf4 {[%clk
0:03:15.9]} 20. Kb1 {[%clk 0:02:29.6]} 20... Nxg2 {[%clk 0:03:05.3]} 21. Qf2
{[%clk 0:02:27.2]} 21... Nf4 {[%clk 0:03:02.4]} 22. Nxa8 {[%clk 0:02:22.7]}
22... Bxa8 {[%clk 0:03:02.3]} 23. Qa7 {[%clk 0:02:15.2]} 23... Qb7 {[%clk
0:02:56.4]} 24. Qd4 {[%clk 0:02:07.4]} 24... Bb8 {[%clk 0:02:47.8]} 25. Nc5
{[%clk 0:01:58.2]} 25... Qc6 {[%clk 0:02:42.8]} 26. Nxa6 {[%clk 0:01:48.6]}
26... Bd6 {[%clk 0:02:36.9]} 27. Bf1 {[%clk 0:01:31.2]} 27... Ke7 {[%clk
0:02:27.7]} 28. Qxd6+ {[%clk 0:01:22]} 28... Qxd6 {[%clk 0:02:26]} 29. Rxd6
{[%clk 0:01:21]} 29... Kxd6 {[%clk 0:02:25.9]} 30. Bc7+ {[%clk 0:01:16.7]} 30...
Ke7 {[%clk 0:02:25.4]} 31. Bxe5 {[%clk 0:01:15.1]} 31... Ng6 {[%clk 0:02:24.6]}
32. Bc3 {[%clk 0:01:12.8]} 32... d5 {[%clk 0:02:20.7]} 33. Bd3 {[%clk
0:01:07.5]} 33... Nf4 {[%clk 0:02:19]} 34. Nc7 {[%clk 0:01:03.8]} 34... dxe4
{[%clk 0:02:15.3]} 35. Bxe4 {[%clk 0:00:57.2]} 35... Bxe4 {[%clk 0:02:14.4]} 36.
fxe4 {[%clk 0:00:56]} 36... f6 {[%clk 0:02:14.3]} 37. Nb5 {[%clk 0:00:46.6]}
37... e5 {[%clk 0:02:11.9]} 38. Bb4+ {[%clk 0:00:41.6]} 38... Ke6 {[%clk
0:02:07.1]} 39. Rd1 {[%clk 0:00:36.2]} 39... Rb8 {[%clk 0:02:02.8]} 40. Rd6+
{[%clk 0:00:32.7]} 40... Kf7 {[%clk 0:02:00.5]} 41. c4 {[%clk 0:00:29.5]} 41...
Nxh3 {[%clk 0:01:58.5]} 42. Rd7+ {[%clk 0:00:17.8]} 42... Kg8 {[%clk 0:01:57]}
43. Be1 {[%clk 0:00:16.9]} 43... Ng5 {[%clk 0:01:54.2]} 44. Bxh4 {[%clk
0:00:13.7]} 44... Nxe4 {[%clk 0:01:53.8]} 45. Be1 {[%clk 0:00:11.7]} 45... Rc8
{[%clk 0:01:51.9]} 46. b3 {[%clk 0:00:09.4]} 46... g5 {[%clk 0:01:50]} 47. Nd6
{[%clk 0:00:08.1]} 47... Nxd6 {[%clk 0:01:45.7]} 48. Rxd6 {[%clk 0:00:07.7]}
48... Kf7 {[%clk 0:01:45.2]} 49. Bg3 {[%clk 0:00:04.3]} 49... g4 {[%clk
0:01:44.6]} 50. Rd2 {[%clk 0:00:02.1]} 50... Rh8 {[%clk 0:01:44.1]} 51. Rf2
{[%clk 0:00:00.1]} 51... Rb8 {[%clk 0:01:44]} 0-1

[Event "Live Chess"]
[Site "Chess.com"]
[Date "2024.06.02"]
[Round "-"]
[White "Bunny55"]
[Black "Ninifu"]
[Result "0-1"]
[WhiteElo "1161"]
[BlackElo "2007"]
[TimeControl "300"]
[EndTime "3:18:32 PDT"]
[Termination "Ninifu won by resignation"]

1. e4 {[%clk 0:04:53.2]} 1... d5 {[%clk 0:04:58.4]} 2. exd5 {[%clk 0:04:51]}
2... Nf6 {[%clk 0:04:57.7]} 3. Nc3 {[%clk 0:04:49.8]} 3... Nxd5 {[%clk
0:04:56.4]} 4. d4 {[%clk 0:04:47.5]} 4... Nxc3 {[%clk 0:04:54.9]} 5. bxc3 {[%clk
0:04:45.4]} 5... e6 {[%clk 0:04:54.4]} 6. Nf3 {[%clk 0:04:44.1]} 6... Be7 {[%clk
0:04:53.7]} 7. Bd3 {[%clk 0:04:42.3]} 7... Nd7 {[%clk 0:04:53.2]} 8. Be3 {[%clk
0:04:41]} 8... Nf6 {[%clk 0:04:52.7]} 9. O-O {[%clk 0:04:39.9]} 9... b6 {[%clk
0:04:52]} 10. Re1 {[%clk 0:04:39.1]} 10... Bb7 {[%clk 0:04:51.3]} 11. Ne5 {[%clk
0:04:35.3]} 11... O-O {[%clk 0:04:50.2]} 12. Qd2 {[%clk 0:04:28.4]} 12... Qd5
{[%clk 0:04:48.6]} 13. f3 {[%clk 0:04:20.2]} 13... c5 {[%clk 0:04:36.4]} 14. Be4
{[%clk 0:04:17.9]} 14... Nxe4 {[%clk 0:04:32.9]} 15. fxe4 {[%clk 0:04:15.8]}
15... Qxe4 {[%clk 0:04:27.7]} 0-1

[Event "Live Chess"]
[Site "Chess.com"]
[Date "2024.06.02"]
[Round "-"]
[White "Delacorta"]
[Black "juniortay"]
[Result "0-1"]
[WhiteElo "1514"]
[BlackElo "2366"]
[TimeControl "300"]
[EndTime "3:18:49 PDT"]
[Termination "juniortay won by resignation"]

1. d4 {[%clk 0:04:55.4]} 1... d5 {[%clk 0:04:58.8]} 2. Nf3 {[%clk 0:04:53.1]}
2... c5 {[%clk 0:04:57.6]} 3. e3 {[%clk 0:04:51.5]} 3... Nc6 {[%clk 0:04:56.4]}
4. b3 {[%clk 0:04:50.2]} 4... Bg4 {[%clk 0:04:55.1]} 5. Be2 {[%clk 0:04:48.4]}
5... Nf6 {[%clk 0:04:51.9]} 6. h3 {[%clk 0:04:47.4]} 6... Bh5 {[%clk 0:04:50]}
7. Bb2 {[%clk 0:04:46.6]} 7... e6 {[%clk 0:04:48.4]} 8. Nbd2 {[%clk 0:04:44.1]}
8... Bd6 {[%clk 0:04:47.1]} 9. Ne5 {[%clk 0:04:37.6]} 9... Bxe2 {[%clk
0:04:45.2]} 10. Qxe2 {[%clk 0:04:36.2]} 10... O-O {[%clk 0:04:43.6]} 11. O-O
{[%clk 0:04:16.6]} 11... Qc7 {[%clk 0:04:42]} 12. f4 {[%clk 0:04:14.2]} 12...
Ne4 {[%clk 0:04:38.3]} 13. Nxe4 {[%clk 0:04:09.9]} 13... dxe4 {[%clk 0:04:37]}
14. Rad1 {[%clk 0:03:47.9]} 14... f5 {[%clk 0:04:34.7]} 15. d5 {[%clk
0:03:39.7]} 15... Nxe5 {[%clk 0:04:31.5]} 16. fxe5 {[%clk 0:03:26.1]} 16... Bxe5
{[%clk 0:04:30.4]} 17. d6 {[%clk 0:03:25.2]} 17... Bxd6 {[%clk 0:04:27.3]} 18.
Qc4 {[%clk 0:03:19.3]} 18... Rae8 {[%clk 0:04:23.7]} 19. Kf2 {[%clk 0:02:47.5]}
19... Rf7 {[%clk 0:04:22.3]} 20. Ke2 {[%clk 0:02:46.4]} 20... Be5 {[%clk
0:04:16.7]} 21. Ba3 {[%clk 0:02:43.2]} 21... b6 {[%clk 0:04:14.6]} 22. b4 {[%clk
0:02:40]} 22... cxb4 {[%clk 0:04:07.7]} 23. Qxb4 {[%clk 0:02:28.6]} 23... Qxc2+
{[%clk 0:04:05.2]} 24. Rd2 {[%clk 0:02:27.8]} 24... Qc8 {[%clk 0:03:56.8]} 25.
Rc1 {[%clk 0:02:26.1]} 25... Qa6+ {[%clk 0:03:52.3]} 26. Kd1 {[%clk 0:02:14]}
26... Qf1+ {[%clk 0:03:44.1]} 27. Kc2 {[%clk 0:02:08.4]} 27... Rc7+ {[%clk
0:03:37.5]} 0-1

[Event "Live Chess"]
[Site "Chess.com"]
[Date "2024.06.02"]
[Round "-"]
[White "NottheBishopSacrifice"]
[Black "Pandreq"]
[Result "1-0"]
[WhiteElo "2309"]
[BlackElo "1220"]
[TimeControl "300"]
[EndTime "3:18:52 PDT"]
[Termination "NottheBishopSacrifice won by resignation"]

1. d4 {[%clk 0:04:56.3]} 1... d5 {[%clk 0:04:58.9]} 2. c4 {[%clk 0:04:55]} 2...
c6 {[%clk 0:04:57.9]} 3. Nf3 {[%clk 0:04:53.9]} 3... Nf6 {[%clk 0:04:56.6]} 4.
e3 {[%clk 0:04:53.5]} 4... Bf5 {[%clk 0:04:50.6]} 5. Be2 {[%clk 0:04:52.8]} 5...
Nbd7 {[%clk 0:04:48.5]} 6. O-O {[%clk 0:04:52.3]} 6... e6 {[%clk 0:04:46.4]} 7.
b3 {[%clk 0:04:51.7]} 7... Bb4 {[%clk 0:04:39.8]} 8. Bb2 {[%clk 0:04:48.1]} 8...
O-O {[%clk 0:04:37.6]} 9. Nh4 {[%clk 0:04:45.7]} 9... Bg6 {[%clk 0:04:28.1]} 10.
Nxg6 {[%clk 0:04:44.3]} 10... hxg6 {[%clk 0:04:28]} 11. Nc3 {[%clk 0:04:43.2]}
11... b6 {[%clk 0:04:20.9]} 12. a3 {[%clk 0:04:41.3]} 12... Bd6 {[%clk
0:04:19.3]} 13. Qc2 {[%clk 0:04:40.1]} 13... c5 {[%clk 0:04:09.8]} 14. cxd5
{[%clk 0:04:37]} 14... Nxd5 {[%clk 0:04:07.8]} 15. Nxd5 {[%clk 0:04:34.8]} 15...
exd5 {[%clk 0:04:04.6]} 16. Bf3 {[%clk 0:04:33.7]} 16... Nf6 {[%clk 0:03:57.7]}
17. h3 {[%clk 0:04:28.5]} 17... Rc8 {[%clk 0:03:55.7]} 18. dxc5 {[%clk
0:04:25.4]} 18... Bxc5 {[%clk 0:03:53.7]} 19. Qd3 {[%clk 0:04:23.4]} 19... Re8
{[%clk 0:03:35.9]} 20. b4 {[%clk 0:04:21.8]} 20... Be7 {[%clk 0:03:30.9]} 21.
Bxf6 {[%clk 0:04:20.3]} 21... Bxf6 {[%clk 0:03:29.2]} 22. Rac1 {[%clk
0:04:19.8]} 22... Rxc1 {[%clk 0:03:24.7]} 23. Rxc1 {[%clk 0:04:18]} 23... d4
{[%clk 0:03:14.6]} 24. e4 {[%clk 0:04:16.5]} 24... Be5 {[%clk 0:03:08]} 25. Bg4
{[%clk 0:04:11.3]} 25... Qb8 {[%clk 0:02:50.1]} 26. g3 {[%clk 0:04:09]} 26...
Rc8 {[%clk 0:02:43.5]} 27. Rxc8+ {[%clk 0:04:06.6]} 1-0